fUSD/lending_fUSD_20250609
["ID","MTS","AMOUNT","RATE_DAILY","PERIOD"]
[365094769,1749462709627,-163.64,0.000292,7]
[365094770,1749462709636,-1163.41,0.00029282,2]
[365094771,1749462709645,-1163.41,0.00029282,2]
[365094772,1749462709655,-2073.06,0.00029282,2]
[365094773,1749462709664,-1689.0,0.00029294,2]
[365094774,1749462709674,-150.0,0.00029365,120]
[365094775,1749462709683,-150.0,0.00029397,120]
[365094776,1749462709693,-346.28,0.000294,14]
[365094777,1749462709702,-383.0,0.00029432,14]
[365094778,1749462709711,-1500.0,0.000295,2]
[365094779,1749462709720,-150.0,0.00029509,120]
[365094780,1749462709730,-150.0,0.0002956,2]
[365094781,1749462709739,-1689.0,0.00029584,2]
[365094782,1749462709749,-500.0,0.00029617,2]
[365094783,1749462709758,-870.89,0.00029647,2]
[365094784,1749462709767,-346.28,0.000297,14]
[365094785,1749462709776,-150.0,0.00029719,120]
[365094786,1749462709785,-644.82309129,0.00029871,5]
[365094787,1749462709794,-1689.0,0.00029874,2]
[365094788,1749462709803,-2992.54778005,0.000299,120]
[365094789,1749462709813,-346.28,0.000299,14]
[365094790,1749462709821,-230.34212211,0.0002999,2]
[365094791,1749462709830,-600.00955178,0.0002999,2]
[365094792,1749462709839,-1200.0,0.00029999,7]
[365094793,1749462709849,-4291.29946893,0.0003,2]
[365094794,1749462709858,-19293.36357334,0.0003,2]
[365094795,1749462709868,-206474.73848125,0.0003,2]
[365094796,1749462709877,-151.21452331,0.0003,60]
[365094797,1749462709889,-3502566.94153792,0.0003,4]
[365094798,1749462709898,-10574.02450234,0.0003,2]
[365094799,1749462709907,-169.0,0.0003,22]
[365094800,1749462709916,-6602.45139073,0.0003,4]
[365094801,1749462709926,-150.0,0.0003,2]
[365094802,1749462709934,-1058.51179643,0.0003,30]
[365094803,1749462709943,-16603.38570913,0.0003,30]
[365094804,1749462709952,-5093.5,0.0003,120]
[365094805,1749462709961,-53815.42918017,0.0003,5]
[365094806,1749462709971,-1761.68588353,0.0003,2]
[365094807,1749462709980,-3257.93602894,0.0003,60]
[365094808,1749462709989,-160.91388258,0.0003,2]
[365094809,1749462709999,-1554.90165331,0.0003,2]
[365094810,1749462710008,-300.0,0.0003,30]
[365094811,1749462710017,-5035.85135777,0.0003,30]
[365094812,1749462710026,-2001.63446411,0.0003,2]
[365094813,1749462710038,-251.90450645,0.0003,30]
[365094814,1749462710047,-1106.73294722,0.0003,2]
[365094815,1749462710056,-1800.0,0.0003,31]
[365094816,1749462710066,-50000.0,0.0003,7]
[365094817,1749462710075,-50000.0,0.0003,7]
[365094818,1749462710084,-50000.0,0.0003,7]
[365094819,1749462710094,-50000.0,0.0003,7]
[365094820,1749462710103,-50000.0,0.0003,7]
[365094821,1749462710113,-50000.0,0.0003,7]
[365094822,1749462710123,-12426.0,0.0003,7]
[365094823,1749462710132,-20059.91388872,0.0003,30]
[365094824,1749462710143,-4447.07064667,0.0003,2]
[365094825,1749462710152,-16628.0,0.0003,30]
[365094826,1749462710162,-8689.74517814,0.0003,30]
[365094827,1749462710172,-1024.86341635,0.0003,2]
[365094828,1749462710181,-161.0,0.0003,3]
[365094829,1749462710190,-10848.0,0.0003,30]
[365094830,1749462710200,-10000.0,0.0003,30]
[365094831,1749462710209,-10000.0,0.0003,30]
[365094832,1749462710218,-10000.0,0.0003,30]
[365094833,1749462710228,-914.42511561,0.0003,120]
[365094834,1749462710237,-259.0,0.0003,7]
[365094835,1749462710246,-1000.0,0.0003,120]
[365094836,1749462710255,-601.4837773,0.0003,5]
[365094837,1749462710265,-5562.93779327,0.0003,2]
[365094838,1749462710275,-37862.13019549,0.0003,120]
[365094839,1749462710288,-201522.18445894,0.0003,10]
[365094840,1749462710298,-13089.93528431,0.0003,5]
[365094841,1749462710308,-1326.85651841,0.0003,5]
[365094842,1749462710317,-500.0,0.0003,2]
[365094843,1749462710326,-200.0,0.0003,2]
[365094844,1749462710336,-1500.0,0.0003,90]
[365094845,1749462710346,-12000.0,0.0003,8]
[365094846,1749462710355,-159.0,0.0003,22]
[365094847,1749462710365,-158.29431672,0.0003,60]
[365094848,1749462710375,-214.0,0.0003,2]
[365094849,1749462710384,-158.29431667,0.0003,60]
[365094850,1749462710394,-158.29431667,0.0003,60]
[365094851,1749462710403,-158.29431667,0.0003,60]
[365094852,1749462710414,-158.29431667,0.0003,60]
[365094853,1749462710423,-158.29431667,0.0003,60]
[365094854,1749462710432,-158.29431667,0.0003,60]
[365094855,1749462710441,-1500.0,0.0003,2]
[365094856,1749462710451,-158.29431667,0.0003,60]
[365094857,1749462710460,-158.29431667,0.0003,60]
[365094858,1749462710470,-158.29431667,0.0003,60]
[365094859,1749462710479,-158.29431667,0.0003,60]
[365094860,1749462710488,-158.29431667,0.0003,60]
[365094861,1749462710497,-158.29431667,0.0003,60]
[365094862,1749462710507,-150.0,0.00030013,120]
[365094863,1749462710516,-2258.0,0.00030083,2]
[365094864,1749462710525,-2000.0,0.00030099,2]
[365094865,1749462710539,-5000.0,0.000301,120]
[365094866,1749462710549,-2291.07,0.000301,31]
[365094867,1749462710559,-2291.07,0.000301,31]
[365094868,1749462710569,-2291.07,0.000301,31]
[365094869,1749462710579,-2291.07,0.000301,31]
[365094870,1749462710589,-2291.07,0.000301,31]
[365094871,1749462710598,-2291.07,0.000301,31]
[365094872,1749462710608,-2291.07,0.000301,31]
[365094873,1749462710618,-2291.07,0.000301,31]
[365094874,1749462710627,-2291.07,0.000301,31]
[365094875,1749462710637,-2291.07,0.000301,31]
[365094876,1749462710647,-2291.07,0.000301,31]
[365094877,1749462710657,-2291.07,0.000301,31]
[365094878,1749462710667,-2291.07,0.000301,31]
[365094879,1749462710676,-2291.07,0.000301,31]
[365094880,1749462710685,-2291.07,0.000301,31]
[365094881,1749462710694,-2291.07,0.000301,31]
[365094882,1749462710704,-2291.07,0.000301,31]
[365094883,1749462710713,-2291.07,0.000301,31]
[365094884,1749462710723,-2291.07,0.000301,31]
[365094885,1749462710731,-2291.07,0.000301,31]
[365094886,1749462710740,-2291.07,0.000301,31]
[365094887,1749462710750,-2291.07,0.000301,31]
[365094888,1749462710759,-2291.07,0.000301,31]
[365094889,1749462710768,-2291.07,0.000301,31]
[365094890,1749462710778,-12114.33,0.0003011,2]
[365094891,1749462710788,-287.61899177,0.00030119,2]
[365094892,1749462710798,-985.34725801,0.00030123,3]
[365094893,1749462710807,-393.06,0.00030123,2]
[365094894,1749462710816,-9582.1202475,0.0003013,2]
[365094895,1749462710825,-195.64028191,0.0003013,2]
[365094896,1749462710834,-574.06,0.00030136,2]
[365094897,1749462710843,-480.0,0.00030136,10]
[365094898,1749462710853,-480.0,0.00030136,10]
[365094899,1749462710862,-480.0,0.00030136,10]
[365094900,1749462710871,-480.0,0.00030136,10]
[365094901,1749462710881,-480.0,0.00030136,10]
[365094902,1749462710893,-497.88849559,0.00030136,10]
[365094903,1749462710902,-600.0,0.00030137,2]
[365094904,1749462710912,-186.63,0.00030137,80]
[365094905,1749462710922,-9692.43,0.00030137,2]
[365094906,1749462710931,-1000.0,0.00030138,7]
[365094907,1749462710941,-200.0,0.00030144,2]
[365094908,1749462710952,-346.28,0.000302,14]
[365094909,1749462710962,-150.0,0.00030281,2]
[365094910,1749462710971,-992.4486,0.00030299,2]
[365094911,1749462710981,-2000.0,0.00030299,2]
[365094912,1749462710990,-3500.0,0.000303,2]
[365094913,1749462710999,-240.0,0.00030447,14]
[365094914,1749462711009,-383.0,0.00030447,14]
[365094915,1749462711018,-87734.11542591,0.0003049,2]
[365094916,1749462711028,-346.28,0.000305,14]
[365094917,1749462711040,-209.40437684,0.00030532,2]
[365094918,1749462711049,-1333.0,0.00030575,21]
[365094919,1749462711059,-548.0,0.00030613,30]
[365094920,1749462711067,-1528.52680746,0.000307,2]
[365094921,1749462711076,-346.28,0.000308,14]
[365094922,1749462711085,-574.06,0.00030821,3]
[365094923,1749462711094,-215369.0,0.00031,7]
[365094924,1749462711103,-330.56306849,0.00031,5]
[365094925,1749462711112,-1800.0,0.00031,32]
[365094926,1749462711121,-4012.26377944,0.00031,120]
[365094927,1749462711131,-300.0,0.00031,2]
[365094928,1749462711140,-150.0,0.00031002,2]
[365094929,1749462711150,-346.28,0.000311,14]
[365094930,1749462711160,-346.28,0.000313,14]
[365094931,1749462711169,-20121.74518794,0.0003139,6]
[365094932,1749462711178,-3000.00000099,0.000314,30]
[365094933,1749462711187,-19035.94642493,0.0003143,4]
[365094934,1749462711196,-298.26089446,0.00031488,2]
[365094935,1749462711344,-393.06,0.00031493,2]
[365094936,1749462711355,-2000.0,0.000315,2]
[365094937,1749462711364,-574.06,0.00031506,4]
[365094938,1749462711374,-9692.43,0.00031507,2]
[365094939,1749462711383,-150.0,0.00031557,120]
[365094940,1749462711392,-346.28,0.000316,14]
[365094941,1749462711401,-150.0,0.000317,2]
[365094942,1749462711410,-150.0,0.00031723,2]
[365094943,1749462711419,-1000.0,0.00031782,7]
[365094944,1749462711429,-346.28,0.000319,14]
[365094945,1749462711441,-217.15233878,0.00031901,2]
[365094946,1749462711451,-870.89,0.00031911,2]
[365094947,1749462711460,-50000.0,0.00032,22]
[365094948,1749462711470,-18766.3661436,0.00032,7]
[365094949,1749462711479,-1539.57231178,0.00032,2]
[365094950,1749462711488,-35000.0,0.00032,2]
[365094951,1749462711498,-15751.205231,0.00032,5]
[365094952,1749462711507,-1000.0,0.00032,120]
[365094953,1749462711516,-5133.0,0.00032,30]
[365094954,1749462711525,-1800.0,0.00032,33]
[365094955,1749462711536,-1333.0,0.00032055,30]
[365094956,1749462711546,-574.06,0.00032191,5]
[365094957,1749462711556,-346.28,0.000322,14]
[365094958,1749462711565,-588.0,0.00032328,2]
[365094959,1749462711575,-588.0,0.00032328,2]
[365094960,1749462711584,-588.0,0.00032328,2]
[365094961,1749462711594,-599.73559266,0.00032328,2]
[365094962,1749462711603,-500.0,0.00032425,2]
[365094963,1749462711613,-150.0,0.00032444,2]
[365094964,1749462711623,-1000.0,0.00032499,2]
[365094965,1749462711634,-2000.0,0.00032499,2]
[365094966,1749462711644,-1000.0,0.000325,2]
[365094967,1749462711654,-346.28,0.000325,14]
[365094968,1749462711664,-10263.879,0.000325,120]
[365094969,1749462711674,-10263.879,0.000325,120]
[365094970,1749462711683,-10263.88,0.000325,120]
[365094971,1749462711693,-10263.88,0.000325,120]
[365094972,1749462711703,-10263.88,0.000325,120]
[365094973,1749462711713,-150.0,0.00032668,120]
[365094974,1749462711723,-4679.42658178,0.000328,2]
[365094975,1749462711733,-3588.99,0.000328,30]
[365094976,1749462711742,-346.28,0.000328,14]
[365094977,1749462711752,-2684.0,0.00032831,2]
[365094978,1749462711761,-309.29654756,0.00032857,2]
[365094979,1749462711770,-393.06,0.00032863,2]
[365094980,1749462711781,-1200.00000327,0.00032874,30]
[365094981,1749462711792,-574.06,0.00032876,6]
[365094982,1749462711801,-601.33377768,0.00032876,2]
[365094983,1749462711810,-500.0,0.00032876,2]
[365094984,1749462711820,-406.65902905,0.00032876,2]
[365094985,1749462711829,-500.0,0.00032876,2]
[365094986,1749462711838,-500.0,0.00032876,2]
[365094987,1749462711848,-500.0,0.00032876,2]
[365094988,1749462711857,-285.9955906,0.00032876,2]
[365094989,1749462711867,-500.0,0.00032876,2]
[365094990,1749462711879,-451.07737671,0.00032876,2]
[365094991,1749462711889,-179.54365004,0.00032876,2]
[365094992,1749462711900,-500.0,0.00032876,2]
[365094993,1749462711913,-500.0,0.00032876,2]
[365094994,1749462711923,-500.0,0.00032876,2]
[365094995,1749462711932,-500.0,0.00032876,2]
[365094996,1749462711942,-166.40647429,0.00032876,2]
[365094997,1749462711952,-500.0,0.00032876,2]
[365094998,1749462711962,-500.0,0.00032876,2]
[365094999,1749462711972,-500.0,0.00032876,2]
[365095000,1749462711982,-500.0,0.00032876,2]
[365095001,1749462711992,-500.0,0.00032876,2]
[365095002,1749462712002,-225.47579802,0.00032876,2]
[365095003,1749462712013,-527.37634543,0.00032876,2]
[365095004,1749462712023,-500.0,0.00032876,2]
[365095005,1749462712034,-500.0,0.00032876,2]
[365095006,1749462712043,-500.0,0.00032876,2]
[365095007,1749462712053,-500.0,0.00032876,2]
[365095008,1749462712061,-500.0,0.00032876,2]
[365095009,1749462712071,-500.0,0.00032876,2]
[365095010,1749462712081,-500.0,0.00032876,2]
[365095011,1749462712090,-271.47768509,0.00032876,2]
[365095012,1749462712098,-455.00445509,0.00032876,2]
[365095013,1749462712107,-165.13413886,0.00032876,2]
[365095014,1749462712116,-553.54784747,0.00032876,2]
[365095015,1749462712124,-4403.08565096,0.00032876,2]
[365095016,1749462712133,-4403.08565096,0.00032876,2]
[365095017,1749462712142,-4403.08565096,0.00032876,2]
[365095018,1749462712152,-4403.08565096,0.00032876,2]
[365095019,1749462712162,-4403.08565096,0.00032876,2]
[365095020,1749462712172,-4403.08565096,0.00032876,2]
[365095021,1749462712181,-4403.08565096,0.00032876,2]
[365095022,1749462712191,-4403.08565096,0.00032876,2]
[365095023,1749462712201,-333.59,0.00032877,2]
[365095024,1749462712210,-9692.43,0.00032877,2]
[365095025,1749462712220,-17407.82,0.000329,14]
[365095026,1749462712229,-1200.0,0.000329,2]
[365095027,1749462712239,-526.0,0.000329,2]
[365095028,1749462712248,-394.0,0.000329,2]
[365095029,1749462712258,-4579.87849029,0.00033,2]
[365095030,1749462712268,-25242.95512092,0.00033,2]
[365095031,1749462712277,-160.0,0.00033,30]
[365095032,1749462712288,-215369.0,0.00033,14]
[365095033,1749462712298,-1800.0,0.00033,34]
[365095034,1749462712309,-529.106726,0.00033,14]
[365095035,1749462712318,-346.28,0.00033,14]
[365095036,1749462712328,-214.0,0.00033,2]
[365095037,1749462712337,-150.0,0.00033044,120]
[365095038,1749462712346,-217.52514686,0.000331,2]
[365095039,1749462712356,-285.74,0.00033165,2]
[365095040,1749462712365,-150.0,0.00033165,2]
[365095041,1749462712374,-6705.9080894,0.000332,7]
[365095042,1749462712384,-225.18697532,0.0003327,2]
[365095043,1749462712393,-346.28,0.000333,14]
[365095044,1749462712402,-17407.82,0.000334,14]
[365095045,1749462712411,-500.3992034,0.00033426,60]
[365095046,1749462712421,-6572.93555248,0.00033452,2]
[365095047,1749462712431,-6572.93555247,0.00033452,2]
[365095048,1749462712441,-6572.93555247,0.00033452,2]
[365095049,1749462712450,-150.0,0.00033488,120]
[365095050,1749462712460,-1174.55219546,0.000335,2]
[365095051,1749462712470,-2291.07,0.000335,31]
[365095052,1749462712480,-2291.07,0.000335,31]
[365095053,1749462712489,-2291.07,0.000335,31]
[365095054,1749462712498,-2291.07,0.000335,31]
[365095055,1749462712507,-2291.07,0.000335,31]
[365095056,1749462712515,-2291.07,0.000335,31]
[365095057,1749462712524,-2291.07,0.000335,31]
[365095058,1749462712532,-2291.07,0.000335,31]
[365095059,1749462712541,-2291.07,0.000335,31]
[365095060,1749462712549,-2291.07,0.000335,31]
[365095061,1749462712558,-2291.07,0.000335,31]
[365095062,1749462712566,-2291.07,0.000335,31]
[365095063,1749462712575,-1278.65670926,0.00033534,14]
[365095064,1749462712584,-574.06,0.00033561,12]
[365095065,1749462712593,-346.28,0.000336,14]
[365095066,1749462712603,-150.0,0.00033627,120]
[365095067,1749462712612,-330.0,0.00033674,30]
[365095068,1749462712621,-300.0,0.00033808,2]
[365095069,1749462712632,-150.0,0.00033835,120]
[365095070,1749462712641,-1000.0,0.00033836,2]
[365095071,1749462712651,-150.0,0.00033886,2]
[365095072,1749462712661,-17407.82,0.000339,14]
[365095073,1749462712670,-346.28,0.000339,14]
[365095074,1749462712679,-207.0,0.00033995,23]
[365095075,1749462712688,-50000.0,0.00034,24]
[365095076,1749462712698,-266.3326073,0.00034,120]
[365095077,1749462712707,-976.96,0.00034,2]
[365095078,1749462712717,-1000.0,0.00034,120]
[365095079,1749462712727,-1800.0,0.00034,35]
[365095080,1749462712736,-2299.999999,0.00034,2]
[365095081,1749462712745,-78297.7759203,0.000341,2]
[365095082,1749462712754,-870.89,0.00034175,2]
[365095083,1749462712763,-346.28,0.000342,14]
[365095084,1749462712773,-2000.0,0.000342,2]
[365095085,1749462712783,-320.74051982,0.00034226,2]
[365095086,1749462712792,-393.06,0.00034233,2]
[365095087,1749462712801,-574.06,0.00034246,13]
[365095088,1749462712810,-17407.82,0.000344,14]
[365095089,1749462712820,-346.28,0.000345,14]
[365095090,1749462712830,-317.92,0.000346,120]
[365095091,1749462712839,-150.0,0.00034607,2]
[365095092,1749462712848,-233.51889341,0.00034639,2]
[365095093,1749462712858,-346.28,0.000347,14]
[365095094,1749462712867,-23869.76512829,0.0003489,14]
[365095095,1749462712876,-2000.0,0.000349,30]
[365095096,1749462712888,-17407.82,0.000349,14]
[365095097,1749462712898,-574.06,0.00034931,14]
[365095098,1749462712907,-2017.359,0.0003496,48]
[365095099,1749462712916,-2999.99,0.00035,2]
[365095100,1749462712926,-1201.12825597,0.00035,2]
[365095101,1749462712935,-3000.0,0.00035,2]
[365095103,1749462712944,-3000.0,0.00035,2]
[365095104,1749462712954,-3000.0,0.00035,2]
[365095105,1749462712964,-1766.11,0.00035,2]
[365095106,1749462712973,-3000.0,0.00035,2]
[365095107,1749462712983,-3284.14010335,0.00035,7]
[365095108,1749462712992,-228.81370513,0.00035,2]
[365095109,1749462713001,-10000.0,0.00035,14]
[365095110,1749462713011,-5000.0,0.00035,10]
[365095111,1749462713020,-215369.0,0.00035,14]
[365095112,1749462713029,-18228.04141307,0.00035,30]
[365095113,1749462713039,-243.3,0.00035,2]
[365095114,1749462713048,-1110.59289752,0.00035,15]
[365095115,1749462713057,-25000.0,0.00035,20]
[365095116,1749462713067,-152.0,0.00035,120]
[365095117,1749462713076,-229.2307053,0.00035,120]
[365095118,1749462713085,-638.0,0.00035,120]
[365095119,1749462713094,-200.0,0.00035,2]
[365095120,1749462713104,-346.28,0.00035,14]
[365095121,1749462713113,-164.80819246,0.00035,7]
[365095122,1749462713122,-205.0,0.00035,30]
[365095123,1749462713132,-250.647023,0.00035,22]
[365095124,1749462713141,-1800.0,0.00035,36]
[365095125,1749462713150,-156.12008987,0.00035,120]
[365095126,1749462713159,-150.0,0.00035,30]
[365095127,1749462713169,-8970.0,0.00035,60]
[365095128,1749462713178,-150.0,0.00035007,120]
[365095129,1749462713187,-1333.0,0.00035014,90]
[365095130,1749462713197,-1704.57,0.00035068,2]
[365095131,1749462713206,-7378.74210355,0.000351,30]
[365095132,1749462713215,-2143.24834222,0.000351,5]
[365095133,1749462713224,-500.0,0.00035233,2]
[365095134,1749462713235,-346.28,0.000353,14]
[365095135,1749462713244,-150.0,0.00035328,2]
[365095136,1749462713254,-16248.91219965,0.00035333,2]
[365095137,1749462713264,-151.0,0.000354,120]
[365095138,1749462713273,-292.49961468,0.00035423,30]
[365095139,1749462713282,-459.32513454,0.00035423,30]
[365095140,1749462713292,-200.8106488,0.00035526,14]
[365095141,1749462713301,-332.60791905,0.00035595,2]
[365095142,1749462713311,-346.28,0.000356,14]
[365095143,1749462713320,-393.06,0.00035603,2]
[365095144,1749462713330,-236.14409951,0.00035616,120]
[365095145,1749462713339,-244.780783,0.00035616,120]
[365095146,1749462713348,-7827.94172369,0.00035616,30]
[365095147,1749462713358,-574.06,0.00035616,15]
[365095148,1749462713367,-1000.0,0.00035616,15]
[365095149,1749462713376,-789.51575417,0.00035616,15]
[365095150,1749462713385,-1903.73,0.0003564,30]
[365095151,1749462713395,-346.28,0.000359,14]
[365095152,1749462713404,-13732.42560294,0.0003591,2]
[365095153,1749462713413,-2000.0,0.0003596,48]
[365095155,1749462713422,-50000.0,0.00036,26]
[365095156,1749462713435,-64699.07075637,0.00036,2]
[365095157,1749462713444,-348.51288416,0.00036,120]
[365095158,1749462713454,-20098.47168865,0.00036,2]
[365095159,1749462713463,-228202.9700934,0.00036,2]
[365095160,1749462713473,-1000.0,0.00036,120]
[365095161,1749462713483,-1800.0,0.00036,37]
[365095162,1749462713492,-150.74,0.00036,2]
[365095163,1749462713502,-180.43934311,0.00036,30]
[365095164,1749462713511,-214.0,0.00036,2]
[365095165,1749462713520,-242.15909246,0.00036008,2]
[365095166,1749462713531,-150.0,0.00036049,2]
[365095167,1749462713540,-150.0,0.00036112,120]
[365095168,1749462713550,-200.0,0.00036164,2]
[365095169,1749462713560,-870.20870827,0.000362,120]
[365095170,1749462713570,-346.28,0.000362,14]
[365095171,1749462713580,-574.06,0.00036301,16]
[365095172,1749462713589,-205.0,0.00036383,30]
[365095173,1749462713599,-346.28,0.000364,14]
[365095174,1749462713608,-870.89,0.00036438,2]
[365095175,1749462713617,-1333.0,0.00036493,120]
[365095176,1749462713627,-352.67264891,0.000365,120]
[365095177,1749462713636,-2889.91,0.000365,30]
[365095178,1749462713646,-300.0,0.00036617,5]
[365095179,1749462713655,-346.28,0.000367,14]
[365095180,1749462713664,-150.0,0.0003677,2]
[365095181,1749462713674,-1508.5252,0.0003686,45]
[365095182,1749462713683,-428.7899,0.00036888,7]
[365095183,1749462713692,-2000.0,0.000369,2]
[365095184,1749462713702,-344.91441206,0.00036964,2]
[365095185,1749462713711,-393.06,0.00036972,2]
[365095186,1749462713721,-574.06,0.00036986,17]
[365095187,1749462713730,-1800.0,0.00037,38]
[365095188,1749462713739,-215369.0,0.00037,14]
[365095189,1749462713748,-300.0,0.00037,2]
[365095190,1749462713758,-300.0,0.00037,2]
[365095191,1749462713768,-300.0,0.00037,2]
[365095192,1749462713778,-300.0,0.00037,2]
[365095193,1749462713788,-314.34355624,0.00037,2]
[365095194,1749462713798,-1139.21039267,0.00037,10]
[365095195,1749462713807,-346.28,0.00037,14]
[365095196,1749462713816,-150.0,0.00037137,120]
[365095197,1749462713825,-1152.32391958,0.000372,120]
[365095198,1749462713977,-1152.32391954,0.000372,120]
[365095199,1749462713987,-1152.32391954,0.000372,120]
[365095200,1749462713997,-1152.32391954,0.000372,120]
[365095201,1749462714006,-1152.32391954,0.000372,120]
[365095202,1749462714015,-346.28,0.000373,14]
[365095203,1749462714024,-231.83,0.000373,14]
[365095204,1749462714034,-251.11897888,0.00037377,2]
[365095205,1749462714044,-150.0,0.00037491,2]
[365095206,1749462714053,-3337.63494824,0.000375,12]
[365095207,1749462714063,-8278.87641991,0.000375,120]
[365095208,1749462714072,-4224.88971959,0.0003759,2]
[365095209,1749462714081,-313.78,0.0003759,2]
[365095210,1749462714092,-346.28,0.000376,14]
[365095211,1749462714101,-7827.94172369,0.00037616,30]
[365095212,1749462714111,-574.06,0.00037671,18]
[365095213,1749462714121,-186.63,0.00037671,120]
[365095214,1749462714130,-346.28,0.000378,14]
[365095215,1749462714140,-3000.0,0.0003785,48]
[365095216,1749462714150,-110000.0,0.0003788,120]
[365095217,1749462714160,-3477.12429182,0.0003788,120]
[365095218,1749462714169,-36166.87570818,0.0003788,120]
[365095219,1749462714178,-5015.0011119,0.000379,120]
[365095220,1749462714188,-208.39324982,0.00037973,2]
[365095221,1749462714197,-50000.0,0.00038,28]
[365095222,1749462714206,-1800.0,0.00038,39]
[365095223,1749462714216,-1531.39825882,0.00038,15]
[365095224,1749462714226,-17407.82,0.00038,14]
[365095225,1749462714236,-1000.0,0.00038,60]
[365095226,1749462714245,-1000.0,0.00038,120]
[365095227,1749462714256,-5017.19,0.00038,30]
[365095228,1749462714265,-25561.0,0.00038,120]
[365095229,1749462714275,-2000.0,0.00038,120]
[365095230,1749462714285,-400.0,0.00038,2]
[365095231,1749462714295,-1245.0,0.00038,120]
[365095232,1749462714305,-500.0,0.00038,2]
[365095233,1749462714315,-384.0,0.00038,14]
[365095234,1749462714324,-500.0,0.00038042,5]
[365095235,1749462714334,-346.28,0.000381,14]
[365095236,1749462714344,-150.0,0.00038212,2]
[365095237,1749462714354,-200.0,0.00038222,2]
[365095238,1749462714363,-357.6762453,0.00038333,2]
[365095239,1749462714373,-393.06,0.00038342,2]
[365095240,1749462714384,-574.06,0.00038356,19]
[365095241,1749462714395,-441.82649653,0.00038356,7]
[365095242,1749462714404,-603.28,0.00038356,120]
[365095243,1749462714413,-603.28,0.00038356,120]
[365095244,1749462714423,-603.28,0.00038356,120]
[365095245,1749462714433,-603.28,0.00038356,120]
[365095246,1749462714443,-603.28,0.00038356,120]
[365095247,1749462714453,-603.28,0.00038356,120]
[365095248,1749462714463,-603.28,0.00038356,120]
[365095249,1749462714473,-603.28,0.00038356,120]
[365095250,1749462714481,-603.28,0.00038356,120]
[365095251,1749462714492,-603.28,0.00038356,120]
[365095252,1749462714503,-603.28,0.00038356,120]
[365095253,1749462714515,-603.28,0.00038356,120]
[365095254,1749462714525,-603.28,0.00038356,120]
[365095255,1749462714535,-603.28,0.00038356,120]
[365095256,1749462714545,-603.28,0.00038356,120]
[365095257,1749462714556,-603.28,0.00038356,120]
[365095258,1749462714566,-603.28,0.00038356,120]
[365095259,1749462714577,-603.28,0.00038356,120]
[365095260,1749462714588,-603.28,0.00038356,120]
[365095261,1749462714599,-603.28,0.00038356,120]
[365095262,1749462714610,-603.28,0.00038356,120]
[365095263,1749462714621,-603.28,0.00038356,120]
[365095264,1749462714631,-603.28,0.00038356,120]
[365095265,1749462714641,-603.44509443,0.00038356,120]
[365095266,1749462714651,-395.80587763,0.00038356,120]
[365095267,1749462714662,-1000.0,0.00038356,7]
[365095268,1749462714673,-1000.0,0.00038356,7]
[365095269,1749462714683,-1000.0,0.00038356,7]
[365095270,1749462714693,-1000.0,0.00038356,7]